[Event "Azerbaijan-ch 1st League 2025"]
[Site "Baku"]
[Date "2025.01.06"]
[Round "1.6"]
[White "Orujov, Farid"]
[Black "Isfandiyarli, Kamal"]
[Result "1/2-1/2"]
[Annotator "TA"]
[ECO "B45"]
[WhiteElo "2301"]
[BlackElo "2027"]
[PlyCount "65"]
[EventDate "2025.01.05"]
[EventType "swiss"]
[EventCountry "AZE"]
[SourceTitle "playchess.com"]
[Source "ChessBase"]
[SourceQuality "1"]
[TimeControl "40/5400+30:1800+30"]

{[%evp 20,65,42,35,42,44,42,45,30,33,45,41,47,43,32,30,50,17,16,23,31,8,22,15,36,40,41,37,35,35,49,0,0,0,0,0,0,0,2,0,0,-29,-35,-31,-23,-22,-22,-39]} 1. e4 {[%emt 0:00:01]} c5 {[%emt 0:00:40]} 2. Nf3 {[%emt 0:00:04]} e6 {[%emt 0:00:07]} 3. d4 {[%emt 0:00:06]} cxd4 {[%emt 0:00:10]} 4. Nxd4 {[%emt 0:00:06]} Nf6 {[%emt 0:00:05]} 5. Nc3 {[%emt 0:00:33]} Nc6 {[%emt 0:00:07]} 6. Ndb5 {[%emt 0:02:51]} Bb4 {[%emt 0:00:14]} 7. a3 {[%emt 0:00:05]} Bxc3+ {[%emt 0:00:07]} 8. Nxc3 {[%emt 0:00:03]} d5 {[%emt 0:00:09]} 9. exd5 {[%emt 0:00:12]} exd5 {[%emt 0:00:07]} 10. Bd3 {[%emt 0:00:06]} O-O {[%emt 0:00:07]} 11. O-O {[%emt 0:00:08] Active counter play!} Bg4 {[%emt 0:00:07][%cal Bc8g4,Bg4h5,Bh5g6,Bg6f5][%mdl 32]} 12. f3 {[%emt 0:00:24]} Qb6+ {[%emt 0:00:08]} 13. Kh1 {[%emt 0:01:39]} Bh5 {[%emt 0:00:06]} 14. Bg5 {[%emt 0:01:10] Hoping for Bxf6.} Ne4 {[%emt 0:00:08]} 15. Nxe4 {[%emt 0:00:05]} (15. Nxd5 Nf2+ 16. Rxf2 Qxf2 $11) 15... dxe4 {[%emt 0:00:04]} 16. Bxe4 {[%emt 0:00:06]} Qxb2 {[%emt 0:00:04]} 17. Qb1 {[%emt 0:01:16]} Qb6 {[%emt 0:00:06]} 18. Bd5 {[%emt 0:01:07]} Bg6 {[%emt 0:12:48]} 19. Qxb6 {[%emt 0:00:13]} axb6 {[%emt 0:00:04]} 20. c4 {[%emt 0:00:04]} Ra4 {[%emt 0:19:34]} 21. Rfc1 {[%emt 0:19:50]} Na5 {[%emt 0:23:22]} 22. Rc3 {[%emt 0:02:23] Repels Nb3} Rc8 {[%emt 0:01:43][%cal Ob6b5]} 23. Rac1 {[%emt 0:04:19]} Bf5 {[%emt 0:02:46]} 24. Re1 {[%emt 0:27:43]} h6 {[%emt 0:05:12]} 25. Re7 {[%emt 0:01:34]} Bg6 $1 $11 {[%emt 0:01:51]} (25... hxg5 26. Rxf7 $16 (26. Bxb7 $2 Rcxc4 27. Rxc4 Rxc4 $19)) 26. Bh4 {[%emt 0:19:54][%cal Of3f4]} (26. Bxb7 $2 {is the wrong capture.} Nxb7 (26... Rcxc4 27. Bd2 $17) 27. Rxb7 hxg5 $19) 26... Nxc4 {[%emt 0:08:20]} 27. Bxb7 {[%emt 0:06:32] A strong pair of Bishops.} ({Of course not} 27. Rxb7 Rxa3 28. Rxa3 Nxa3 $17) 27... Rd8 {[%emt 0:06:54][%cal Ob6b5]} 28. Re1 {[%emt 0:03:10]} Rd3 {[%emt 0:00:55]} 29. Rxd3 {[%emt 0:05:34]} Bxd3 {[%emt 0:00:02]} 30. Be7 {[%emt 0:01:23] Against Nd6} Nxa3 {[%emt 0:04:33] ...Nc2 would now be deadly.} 31. Bc6 {[%emt 0:01:50]} Nc2 {[%emt 0:01:33]} 32. Bxa4 {[%emt 0:01:00]} Nxe1 {[%emt 0:00:06]} 33. Bb4 {[%emt 0:00:17]} 1/2-1/2

[Event "Azerbaijan-ch 1st League 2025"]
[Site "Baku"]
[Date "2025.01.06"]
[Round "1.7"]
[White "Garakhanov, Shamsi"]
[Black "Suleymanli, Suleyman"]
[Result "0-1"]
[Annotator "TA"]
[ECO "D27"]
[WhiteElo "2022"]
[BlackElo "2280"]
[PlyCount "72"]
[EventDate "2025.01.05"]
[EventType "swiss"]
[EventCountry "AZE"]
[SourceTitle "playchess.com"]
[Source "ChessBase"]
[SourceQuality "1"]
[TimeControl "40/5400+30:1800+30"]

{[%evp 15,72,0,3,-22,-32,-30,-27,-28,-25,-138,-20,-15,-25,-20,-22,-117,-118,-129,-120,-144,-116,-109,-135,-118,-113,-158,-154,-185,-156,-185,-184,-189,-177,-178,-187,-251,-236,-257,-260,-263,-262,-250,-239,-272,-273,-251,-266,-345,-332,-322,-313,-445,-418,-437,-424,-508,-504,-470,-459]} 1. d4 {[%emt 0:00:03]} d5 {[%emt 0:00:11]} 2. c4 {[%emt 0:00:10]} dxc4 {[%emt 0:00:04]} 3. e3 {[%emt 0:00:40]} Nf6 {[%emt 0:00:07]} 4. Bxc4 {[%emt 0:00:27]} e6 {[%emt 0:00:03]} 5. Nf3 {[%emt 0:01:25]} c5 {[%emt 0:00:06]} 6. O-O {[%emt 0:00:51]} a6 {[%emt 0:00:02]} 7. e4 {[%emt 0:09:48]} b5 {[%emt 0:00:49]} 8. Bd3 {[%emt 0:05:29]} Bb7 {[%emt 0:05:59]} 9. d5 {[%emt 0:08:59]} exd5 {[%emt 0:04:03]} 10. e5 {[%emt 0:01:03]} Ne4 {[%emt 0:01:48]} 11. Bxe4 {[%emt 0:00:56]} dxe4 {[%emt 0:00:03]} 12. Qxd8+ {[%emt 0:00:16]} Kxd8 {[%emt 0:00:01]} 13. Ng5 {[%emt 0:00:13]} Ke8 {[%emt 0:06:29]} (13... Ke7 {feels hotter.} 14. Nc3 Nd7 15. Ncxe4 h6) 14. Re1 {[%emt 0:09:46][%cal Ob1c3]} Nc6 {[%emt 0:05:14]} 15. Nd2 {[%emt 0:13:15]} (15. Nc3 $1 $11 {remains equal.}) 15... Nb4 $17 {[%emt 0:12:41]} ({Don't do} 15... Nxe5 16. Ndxe4 h6 17. Nxc5 Bxc5 18. Rxe5+ Be7 19. Re2 $11) 16. Re2 {[%emt 0:05:55] [#]} e3 $1 {[%emt 0:01:57][%mdl 512] and ...Nc2 would now be decisive} 17. Nf1 {[%emt 0:04:03] White is weak on the light squares} h6 {[%emt 0:01:41] Black is more active.} 18. Nh3 {[%emt 0:00:22]} exf2+ {[%emt 0:01:54]} 19. Nxf2 {[%emt 0:00:13]} Rd8 $36 {[%emt 0:08:56][%mdl 2048] Black has strong initiative.} 20. a3 {[%emt 0:03:25]} Nc6 {[%emt 0:02:00]} 21. Be3 {[%emt 0:03:55] Prevents Nd4.} Nd4 {[%emt 0:07:33]} 22. Bxd4 {[%emt 0:01:00]} Rxd4 {[%emt 0:00:18]} 23. Ng3 {[%emt 0:00:46]} Bc8 {[%emt 0:02:13]} 24. Nfe4 {[%emt 0:03:30]} Be6 {[%emt 0:01:03]} 25. Rae1 {[%emt 0:01:41]} (25. a4 $142) 25... Kd7 $19 {[%emt 0:02:42]} 26. Rf2 {[%emt 0:01:12]} g6 {[%emt 0:04:32] Inhibits Nf5.} 27. Nf6+ {[%emt 0:00:56]} Kc6 {[%emt 0:03:08]} 28. Ne2 {[%emt 0:00:56]} Rd8 {[%emt 0:28:53]} 29. Nf4 {[%emt 0:00:43]} c4 {[%emt 0:00:00]} 30. Nxe6 {[%emt 0:01:24]} fxe6 {[%emt 0:00:00]} 31. Rf3 {[%emt 0:01:45]} Bc5+ {[%emt 0:00:00]} 32. Kf1 {[%emt 0:00:35]} Rhf8 {[%emt 0:00:00]} 33. b3 {[%emt 0:04:02]} (33. Ke2 {was necessary.}) 33... Bxa3 {[%emt 0:00:00]} 34. bxc4 {[%emt 0:00:44]} b4 {[%emt 0:00:00]} 35. Rb1 {[%emt 0:02:55]} Rd4 {[%emt 0:00:00]} 36. Ke2 {[%emt 0:00:35]} Rfd8 {[%emt 0:00:00]} 0-1

[Event "Azerbaijan-ch 1st League 2025"]
[Site "Baku"]
[Date "2025.01.06"]
[Round "1.8"]
[White "Israilov, Agil"]
[Black "Huseynov, Ahmed"]
[Result "1-0"]
[Annotator "TA"]
[ECO "C00"]
[WhiteElo "2280"]
[BlackElo "1996"]
[PlyCount "77"]
[EventDate "2025.01.05"]
[EventType "swiss"]
[EventCountry "AZE"]
[SourceTitle "playchess.com"]
[Source "ChessBase"]
[SourceQuality "1"]
[TimeControl "40/5400+30:1800+30"]

{[%evp 26,77,0,0,27,-15,66,78,74,61,93,86,95,87,95,98,98,97,99,102,135,129,136,138,132,108,103,93,146,42,54,16,21,9,10,12,25,7,29,16,25,0,0,-19,-13,-50,0,-18,186,173,171,0,29991,29992]} 1. e4 {[%emt 0:00:02]} e6 {[%emt 0:00:07]} 2. d3 {[%emt 0:00:39]} d5 {[%emt 0:00:15]} 3. Nd2 {[%emt 0:00:06]} Nf6 {[%emt 0:00:28]} 4. Ngf3 {[%emt 0:00:06]} c5 {[%emt 0:00:09]} 5. g3 {[%emt 0:00:06]} Nc6 {[%emt 0:00:19]} 6. Bg2 {[%emt 0:00:05]} Be7 {[%emt 0:00:59]} 7. O-O {[%emt 0:00:07]} O-O {[%emt 0:00:24]} 8. Re1 {[%emt 0:00:38]} Qc7 {[%emt 0:06:27]} 9. Qe2 {[%emt 0:01:20]} b6 {[%emt 0:07:23]} 10. e5 {[%emt 0:00:16]} Nd7 {[%emt 0:00:07]} 11. Nf1 {[%emt 0:00:09]} Bb7 {[%emt 0:04:41]} 12. h4 {[%emt 0:00:28]} Rac8 {[%emt 0:02:16]} 13. Bf4 {[%emt 0:01:10]} b5 {[%emt 0:02:35]} 14. N1h2 {[%emt 0:01:49]} Rfd8 {[%emt 0:09:00]} 15. h5 {[%emt 0:02:14][%cal Bh4h5,Bh5h6][%mdl 32]} (15. Ng4 $5) 15... Bf8 {[%emt 0:16:44] [#]} (15... h6 $11) 16. h6 $1 $14 {[%emt 0:00:55]} g6 {[%emt 0:00:34]} 17. Ng4 {[%emt 0:00:23]} Be7 {[%emt 0:05:56]} 18. Qd2 {[%emt 0:04:58]} Rf8 {[%emt 0:10:51]} 19. Bg5 {[%emt 0:04:28]} Qd8 {[%emt 0:00:46]} 20. c3 {[%emt 0:02:11]} a5 {[%emt 0:06:12]} 21. Qf4 {[%emt 0:01:26]} Bxg5 {[%emt 0:04:14]} 22. Nxg5 {[%emt 0:00:12]} Qe7 {[%emt 0:00:36]} 23. Bh3 {[%emt 0:02:46]} Nd8 {[%emt 0:02:29]} 24. Rad1 {[%emt 0:05:08]} Rc6 {[%emt 0:02:07]} 25. c4 {[%emt 0:02:51] White is much more active. The black rooks are passive.} bxc4 {[%emt 0:05:04]} 26. dxc4 {[%emt 0:00:17]} Rb6 {[%emt 0:02:26]} ({Black should play} 26... d4 27. b3 Ra6) 27. cxd5 {[%emt 0:00:14]} ({White should play} 27. Ne4 $1 $16 {[%cal Re4f6]} Rxb2 (27... dxe4 $2 28. Rxd7 Nc6 29. Nf6+ Kh8 30. Rxe7 $18) 28. Qc1 Rxa2 29. cxd5 exd5 30. Nc3) 27... exd5 {[%emt 0:02:25][%cal Od5d4]} 28. Qd2 {[%emt 0:14:09][%cal Of2f4]} Ne6 {[%emt 0:01:37]} 29. Nxe6 {[%emt 0:01:27]} fxe6 {[%emt 0:00:11]} 30. Qxa5 {[%emt 0:00:16][%cal Og4f6]} Ra8 $1 {[%emt 0:05:14]} 31. Qd2 {[%emt 0:00:51]} Rxa2 {[%emt 0:00:13]} 32. Qf4 $36 {[%emt 0:00:32][%mdl 2048] Nf6+ is the strong threat. White is pushing.} Nf8 {[%emt 0:01:45]} 33. Ra1 {[%emt 0:04:29]} Raxb2 {[%emt 0:00:47]} 34. Ra7 {[%emt 0:00:49]} R2b4 {[%emt 0:00:33]} 35. Qd2 {[%emt 0:04:15]} c4 {[%emt 0:01:10]} (35... Kh8 $15) 36. Qd4 {[%emt 0:01:14]} Qc7 $2 {[%emt 0:00:29]} (36... Rb1 $11 37. Nf6+ Kh8) 37. Nf6+ $18 {[%emt 0:00:16]} Kh8 {[%emt 0:00:05] [#] aiming for ...c3.} 38. Nxd5 $2 {[%emt 0:00:13]} ({Don't take} 38. Rc1 $6 g5 $14) ({White must play} 38. Ne8 $1 $18 {[%cal Re8c7][%mdl 512]} Qd8 (38... Qb8 39. Qh4 $18) (38... Qd7 39. Nd6) 39. Nd6) 38... exd5 $4 {[%emt 0:00:07][%mdl 8192]} (38... Qd8 $11 39. Bg2 Bxd5 (39... exd5 40. e6+) 40. Bxd5 Rb7 (40... Qxd5 $2 {perishes.} 41. Qf4 $18)) 39. e6+ {[%emt 0:00:03]} 1-0

[Event "Azerbaijan-ch 1st League 2025"]
[Site "Baku"]
[Date "2025.01.06"]
[Round "1.9"]
[White "Halafov, Ilgar"]
[Black "Aslanov, Umid"]
[Result "0-1"]
[Annotator "TA"]
[ECO "D02"]
[WhiteElo "1990"]
[BlackElo "2250"]
[PlyCount "112"]
[EventDate "2025.01.05"]
[EventType "swiss"]
[EventCountry "AZE"]
[SourceTitle "playchess.com"]
[Source "ChessBase"]
[SourceQuality "1"]
[TimeControl "40/5400+30:1800+30"]

{[%evp 9,112,-2,16,12,4,0,10,8,7,11,10,11,7,11,11,5,0,-7,15,0,0,-20,8,0,0,0,12,0,0,-6,4,-9,0,0,21,11,13,14,21,10,25,-53,-28,-70,-46,-130,-121,-112,-72,-90,-74,-79,-69,-132,-127,-260,-252,-293,-305,-450,-436,-494,-490,-664,-635,-597,-637,-514,-377,-365,-287,-297,-233,-239,-233,-283,-269,-379,-360,-2406,-2361,-2101,-1629,-2110,-1930,-1443,-851,-5218,-4686,-4702,-4614,-29988,-29988,-29988,-29989,-29989,-29990,-29992,-29993,-29993,-29994,-29994,-29985,-29985,-29985]} 1. d4 {[%emt 0:01:28]} d5 {[%emt 0:00:06]} 2. Bf4 {[%emt 0:00:35]} Nf6 {[%emt 0:00:18]} 3. e3 {[%emt 0:00:20]} c5 {[%emt 0:00:25]} 4. Nf3 {[%emt 0:01:15]} Nc6 {[%emt 0:00:10]} 5. Nbd2 {[%emt 0:05:16]} Bg4 {[%emt 0:00:11]} 6. h3 {[%emt 0:02:03]} Bh5 {[%emt 0:01:09]} 7. Be2 {[%emt 0:08:53]} cxd4 {[%emt 0:04:01]} 8. exd4 {[%emt 0:00:54]} e6 {[%emt 0:00:11]} 9. O-O {[%emt 0:01:05]} Bd6 {[%emt 0:01:05]} 10. Bxd6 {[%emt 0:01:04]} Qxd6 {[%emt 0:00:04]} 11. c3 {[%emt 0:00:56]} O-O {[%emt 0:01:09]} 12. Ne5 {[%emt 0:04:28]} Nxe5 {[%emt 0:05:17]} 13. Bxh5 {[%emt 0:01:50]} Nc6 {[%emt 0:04:14]} 14. Bf3 {[%emt 0:04:50]} b5 {[%emt 0:02:28]} 15. Nb3 {[%emt 0:12:33]} Nd7 {[%emt 0:01:53]} 16. Qd3 {[%emt 0:01:46]} Rab8 {[%emt 0:01:09]} 17. Rfd1 {[%emt 0:00:21]} Rfc8 {[%emt 0:02:08]} 18. Rac1 {[%emt 0:02:37]} a5 {[%emt 0:05:37]} 19. Nd2 {[%emt 0:02:53]} a4 {[%emt 0:03:07]} 20. h4 {[%emt 0:09:39]} Nf6 {[%emt 0:16:36]} 21. g3 {[%emt 0:13:31]} Qe7 {[%emt 0:03:21]} 22. Bg2 {[%emt 0:09:36]} Ne8 {[%emt 0:00:40]} 23. Re1 {[%emt 0:00:29]} Qd8 {[%emt 0:04:50]} 24. Nf3 {[%emt 0:00:58]} Rc7 {[%emt 0:03:22]} 25. g4 {[%emt 0:03:58]} (25. a3 $11) 25... Qd6 {[%emt 0:02:23]} 26. g5 {[%emt 0:01:14]} g6 {[%emt 0:01:28]} 27. Ne5 {[%emt 0:01:28] [#]} (27. Qd2 $15) 27... Nxe5 $1 $17 {[%emt 0:00:31]} 28. Rxe5 {[%emt 0:00:47]} Qd7 {[%emt 0:02:05]} 29. Bh3 {[%emt 0:04:41] [#]} a3 $1 {[%emt 0:02:26]} 30. b3 {[%emt 0:00:30]} (30. b4 Rbc8) 30... Rbc8 {[%emt 0:00:28]} 31. Bf1 {[%emt 0:02:24]} (31. Re2 $15) 31... Nd6 {[%emt 0:00:25] ...b4 is the strong threat.} 32. Qd2 {[%emt 0:01:30]} (32. Re2 $17) 32... Ne4 $19 {[%emt 0:01:03]} 33. Rxe4 {[%emt 0:00:08]} dxe4 {[%emt 0:00:05]} 34. c4 {[%emt 0:00:05]} (34. Qe3 $142) 34... bxc4 {[%emt 0:00:14]} 35. bxc4 {[%emt 0:00:13]} e5 {[%emt 0:00:22]} 36. d5 {[%emt 0:00:55]} Qg4+ {[%emt 0:00:00]} 37. Kh2 {[%emt 0:00:22]} Qxh4+ {[%emt 0:00:18]} (37... e3 38. Qxe3 Qxh4+ 39. Kg1 $19) 38. Kg1 {[%emt 0:00:01]} Rc5 {[%emt 0:05:52]} 39. Rc3 {[%emt 0:01:30] [#]} h6 $1 {[%emt 0:05:34]} 40. gxh6 {[%emt 0:00:00]} f5 {[%emt 0:00:00]} 41. Rh3 {[%emt 0:14:54]} Qf6 {[%emt 0:01:02]} 42. h7+ {[%emt 0:00:21]} Kh8 {[%emt 0:00:11]} 43. Rxa3 {[%emt 0:04:02]} (43. Qe1 {is a better defense.}) 43... f4 {[%emt 0:00:23]} (43... Kxh7 $2 44. Rh3+ Kg8 45. Qh6 $17) 44. Ra7 $2 {[%emt 0:02:53]} (44. Rh3 R5c7 45. Qc2) 44... Qg5+ {[%emt 0:02:10]} 45. Kh2 {[%emt 0:00:25]} Qh4+ {[%emt 0:02:09]} 46. Kg1 {[%emt 0:00:27]} Qg4+ {[%emt 0:00:06]} 47. Kh2 {[%emt 0:00:22]} e3 {[%emt 0:02:00]} 48. fxe3 {[%emt 0:01:51]} Qg3+ {[%emt 0:00:26]} 49. Kh1 {[%emt 0:00:06]} R5c7 {[%emt 0:00:00]} (49... Qxe3 50. Qxe3 fxe3 51. Re7 $11) 50. Qa5 {[%emt 0:02:05]} Qf3+ {[%emt 0:02:41]} 51. Bg2 {[%emt 0:05:10]} Qh5+ {[%emt 0:00:04]} ({Stronger than} 51... Qxe3 52. Rxc7 Rxc7 53. Qxc7 $11) 52. Kg1 {[%emt 0:00:39]} Rxc4 {[%emt 0:00:01]} (52... Rxh7 53. Ra8 Qd1+ 54. Bf1 $19) 53. Ra8 {[%emt 0:00:41]} Rc1+ {[%emt 0:02:33]} (53... Qxh7 54. Bf1 Rc2 55. Rxc8+ Rxc8 56. Qa6 $19) 54. Kf2 {[%emt 0:02:11]} Qh4+ {[%emt 0:00:01]} (54... Qxh7 55. Qd8+ (55. Rxc8+ Rxc8 56. Qd2 Qh4+ 57. Kf1 f3 $19) 55... Rxd8 56. Rxd8+ $19) 55. Ke2 {[%emt 0:00:37]} Qg4+ {[%emt 0:00:15]} (55... Qxh7 56. Qd8+ Rxd8 57. Rxd8+ $19) 56. Bf3 {[%emt 0:00:46]} R1c2+ {[%emt 0:00:06]} 0-1

[Event "Azerbaijan-ch 1st League 2025"]
[Site "Baku"]
[Date "2025.01.06"]
[Round "1.10"]
[White "Ughuzov, Ravan"]
[Black "Baghirov, Orkhan"]
[Result "1-0"]
[Annotator "TA"]
[ECO "C02"]
[WhiteElo "2250"]
[BlackElo "1989"]
[PlyCount "61"]
[EventDate "2025.01.05"]
[EventType "swiss"]
[EventCountry "AZE"]
[SourceTitle "playchess.com"]
[Source "ChessBase"]
[SourceQuality "1"]
[TimeControl "40/5400+30:1800+30"]

{[%evp 16,61,-18,-23,-15,-19,-11,-15,-23,-27,37,42,74,0,54,0,350,222,208,193,230,194,264,251,250,39,25,37,336,343,336,313,310,314,6511,6391,5310,4882,29987,29988,29993,29993,29993,29993,29993,29989,29990,29991]} 1. e4 {[%emt 0:00:03]} e6 {[%emt 0:00:22]} 2. d4 {[%emt 0:00:06]} d5 {[%emt 0:00:01]} 3. e5 {[%emt 0:00:21]} c5 {[%emt 0:00:01]} 4. c3 {[%emt 0:00:10]} Nc6 {[%emt 0:00:01]} 5. Nf3 {[%emt 0:00:09]} Bd7 {[%emt 0:00:01]} 6. Bd3 {[%emt 0:00:28]} cxd4 {[%emt 0:00:15]} 7. cxd4 {[%emt 0:01:31]} Qb6 {[%emt 0:00:03]} 8. O-O {[%emt 0:00:30]} Nxd4 {[%emt 0:00:17]} 9. Nbd2 {[%emt 0:00:05]} Bc5 {[%emt 0:09:46]} 10. b4 {[%emt 0:09:24]} Nxf3+ {[%emt 0:10:39]} (10... Bxb4 11. Rb1 Nxf3+ 12. Nxf3 $14) 11. Nxf3 {[%emt 0:06:33]} Qxb4 {[%emt 0:02:01]} (11... Bxb4 12. Rb1 Qa5 13. Qb3) 12. Rb1 {[%emt 0:00:04]} Qa5 {[%emt 0:22:38]} (12... Qa4 $1 $11) 13. Rxb7 $14 {[%emt 0:00:28]} Ne7 $1 {[%emt 0:03:41][%cal Oa8c8]} 14. Ng5 {[%emt 0:11:57][%mdl 1024] White has strong compensation. White has more active pieces. The black rooks are passive.} Bc6 $1 {[%emt 0:08:53]} 15. Bd2 {[%emt 0:21:24]} (15. Qh5 $1 $14 g6 16. Qf3 Bxb7 17. Qxf7+ Kd7 18. Be3) 15... Qd8 $2 {[%emt 0:10:40][%mdl 8192] [#]} (15... Qxa2 $11 {and Black has nothing to worry.} 16. Rb1 h6) 16. Qf3 $1 {[%emt 0:03:12]} Rf8 {[%emt 0:02:58]} 17. Rb3 {[%emt 0:07:31][%cal Of3h5]} h6 {[%emt 0:00:54]} 18. Rc1 {[%emt 0:03:27]} Bb6 {[%emt 0:02:51]} (18... Rb8 $142) 19. Nh7 $18 {[%emt 0:08:27][%cal Od2h6] Threatens to win with Bxh6!.} Rg8 {[%emt 0:03:13] [#]} 20. Nf6+ $2 {[%emt 0:05:19]} gxf6 $14 {[%emt 0:00:06]} 21. exf6 {[%emt 0:00:05]} Ng6 $2 {[%emt 0:01:55][%mdl 8192]} (21... Nf5 $1 $14 22. Bxf5 (22. Rxc6 Nd4 $11) 22... Qxf6 23. Rxc6 Qxf5) 22. Rxc6 $18 {[%emt 0:07:09]} Ne5 {[%emt 0:00:05] [#]} 23. Rxe6+ $3 {[%emt 0:00:56][%mdl 512]} fxe6 {[%emt 0:00:07]} 24. Qh5+ {[%emt 0:00:08]} Nf7 $2 {[%emt 0:14:22]} (24... Ng6) 25. Bb5+ {[%emt 0:00:45]} Kf8 {[%emt 0:00:00]} 26. Bb4+ {[%emt 0:06:13] A strong pair of Bishops.} Nd6 {[%emt 0:00:02]} 27. Rf3 {[%emt 0:01:14]} Bd4 {[%emt 0:01:20]} 28. Qxh6+ {[%emt 0:00:49]} Kf7 {[%emt 0:00:03]} 29. Qh7+ {[%emt 0:00:24]} Kf8 {[%emt 0:00:02] [#]} 30. Be8 $1 {[%emt 0:04:05][%mdl 512]} Kxe8 {[%emt 0:06:42]} (30... Rxg2+ 31. Kxg2) 31. f7+ {[%emt 0:00:10]} 1-0

[Event "Azerbaijan-ch 1st League 2025"]
[Site "Baku"]
[Date "2025.01.06"]
[Round "1.11"]
[White "Salimov, Shovkat"]
[Black "Gurbanov, Ismayil"]
[Result "0-1"]
[Annotator "TA"]
[ECO "D27"]
[WhiteElo "1977"]
[BlackElo "2248"]
[PlyCount "96"]
[EventDate "2025.01.05"]
[EventType "swiss"]
[EventCountry "AZE"]
[SourceTitle "playchess.com"]
[Source "ChessBase"]
[SourceQuality "1"]
[TimeControl "40/5400+30:1800+30"]

{[%evp 19,96,14,20,-6,-7,0,0,-20,-13,-16,-21,-37,0,0,0,-18,-16,-39,-39,-52,-36,-60,-60,-56,-49,-122,-122,-116,-120,-113,-113,-112,-129,-170,-179,-170,-18,-166,-143,-146,-137,-142,-156,-138,-146,-146,-154,-289,-296,-288,-291,-784,-720,-757,-779,-784,-766,-1056,-1051,-997,-981,-1156,-1153,-1153,-1153,-1078,-1136,-1179,-1185,-1113,-987,-1881,-1766,-1677,-1600,-29978,-29971,-6495,-5622]} 1. d4 {[%emt 0:00:34]} Nf6 {[%emt 0:00:40]} 2. Nf3 {[%emt 0:00:08]} e6 {[%emt 0:00:39]} 3. c4 {[%emt 0:00:18]} d5 {[%emt 0:00:18]} 4. Nc3 {[%emt 0:00:35]} dxc4 {[%emt 0:01:39]} 5. e3 {[%emt 0:01:27]} a6 {[%emt 0:01:12]} 6. a4 {[%emt 0:01:49]} c5 {[%emt 0:00:43]} 7. Bxc4 {[%emt 0:00:26]} Nc6 {[%emt 0:00:53]} 8. O-O {[%emt 0:02:33]} Be7 {[%emt 0:03:43]} 9. dxc5 {[%emt 0:02:26]} Bxc5 {[%emt 0:00:50]} 10. Qe2 {[%emt 0:11:39]} Qc7 {[%emt 0:03:53]} 11. h3 {[%emt 0:15:51]} O-O {[%emt 0:06:39]} 12. Bd2 {[%emt 0:19:55]} (12. e4 {looks sharper.} Nd4 13. Nxd4 Bxd4 14. Bd3) 12... b6 {[%emt 0:01:56]} 13. Rac1 {[%emt 0:01:01] The position is equal.} Bb7 {[%emt 0:00:27]} 14. Ba2 {[%emt 0:10:39]} Rfd8 {[%emt 0:02:02]} 15. Bb1 {[%emt 0:02:33]} a5 {[%emt 0:16:23]} 16. Nb5 {[%emt 0:06:00]} Qe7 {[%emt 0:00:22]} 17. Bc3 {[%emt 0:01:27]} Nd5 {[%emt 0:01:12]} 18. Qc2 {[%emt 0:02:15]} g6 {[%emt 0:00:56]} 19. Bd2 {[%emt 0:01:29]} Ndb4 {[%emt 0:01:50]} 20. Qb3 {[%emt 0:04:48]} Na7 {[%emt 0:02:23] Hoping for ...Bxf3.} 21. e4 {[%emt 0:02:07]} Ba6 {[%emt 0:13:17]} 22. e5 {[%emt 0:05:46]} ({White should try} 22. Nxa7 $1 $15 Rxd2 (22... Qxa7 $2 23. Bg5 $19) (22... Bxf1 23. Bxb4 axb4 24. Nc6 $11) 23. Nxd2 Bxf1 (23... Qxa7 24. Rfd1 $16) 24. Rxf1 Qxa7 (24... Rxa7 25. Nf3 $17) 25. g3) 22... Nxb5 $17 {[%emt 0:02:13]} 23. axb5 {[%emt 0:00:15]} Bxb5 {[%emt 0:00:02]} 24. Bg5 {[%emt 0:01:13] [#]} Qb7 {[%emt 0:00:57] White must now prevent ...a4.} 25. Bxd8 {[%emt 0:00:19]} Bxf1 {[%emt 0:00:13]} 26. Qd1 {[%emt 0:02:13] [#]} Bd3 {[%emt 0:02:39][%mdl 512]} 27. Bf6 {[%emt 0:00:26]} Qe4 {[%emt 0:04:29]} (27... Bxb1 $19 28. Rxb1 Qd5 29. Qxd5 Nxd5) 28. Bxd3 {[%emt 0:00:01] This costs White the game.} (28. Rxc5 $1 $11 bxc5 29. Qd2) 28... Nxd3 {[%emt 0:01:44]} 29. Rc2 {[%emt 0:00:12]} Nb4 $36 {[%emt 0:17:17][%mdl 2048] Black has strong initiative. Black is much more active.} 30. Re2 {[%emt 0:00:28]} Qc6 {[%emt 0:00:39]} 31. Ng5 {[%emt 0:02:23]} Nd5 {[%emt 0:00:42]} 32. Ne4 {[%emt 0:00:12]} Rc8 {[%emt 0:01:30]} 33. Kh2 {[%emt 0:01:38]} (33. Bg5 $17 {might work better.}) 33... Nf4 $19 {[%emt 0:01:31]} 34. Re1 {[%emt 0:00:34]} Bxf2 $1 {[%emt 0:00:31]} 35. Qf3 $2 {[%emt 0:01:44]} (35. Rf1 Qxe4 36. Rxf2) 35... Bxe1 {[%emt 0:00:24]} 36. Qxf4 {[%emt 0:00:01]} Qc1 {[%emt 0:00:38]} 37. Qf3 {[%emt 0:00:21]} Bd2 {[%emt 0:00:19] Strongly threatening ...Bf4+.} 38. Bh4 {[%emt 0:01:11]} Bf4+ {[%emt 0:00:16]} 39. Bg3 {[%emt 0:00:16]} Bxg3+ {[%emt 0:00:10]} 40. Kxg3 {[%emt 0:00:00][%mdl 4096] Endgame. KQR-KQN} Qe1+ {[%emt 0:00:00]} 41. Kh2 {[%emt 0:00:34]} Rc4 {[%emt 0:03:44]} 42. Nf6+ {[%emt 0:00:15]} Kg7 {[%emt 0:00:05]} 43. Ng4 {[%emt 0:12:30]} Qd2 {[%emt 0:01:43] ...Qf4+ is the strong threat.} 44. Ne3 {[%emt 0:02:07]} Rb4 {[%emt 0:01:01]} 45. Qf6+ {[%emt 0:00:22]} Kg8 {[%emt 0:00:01]} 46. Qf3 {[%emt 0:01:23]} Rb3 {[%emt 0:00:52]} 47. Qa8+ {[%emt 0:00:16]} Kg7 {[%emt 0:38:23]} 48. Ng4 {[%emt 0:00:50]} Qf4+ {[%emt 0:00:00] Weighted Error Value: White=0.52/Black=0.09 (flawless) .  Mistake:       	White=4     	Black=1      Inaccurate:     	White=1     	Black=1      OK:         	White=11    	Black=11     Best:        	White=1     	Black=4      Strong:       	---       	Black=1} 0-1